fUSD/lending_fUSD_20250904
["ID","MTS","AMOUNT","RATE_DAILY","PERIOD"]
[383469812,1756948258754,-400.0,0.00021917,2]
[383469813,1756948258764,-400.0,0.00021917,2]
[383469814,1756948258773,-400.0,0.00021917,2]
[383469815,1756948258783,-400.0,0.00021917,2]
[383469816,1756948258793,-400.0,0.00021917,2]
[383469817,1756948258803,-400.0,0.00021917,2]
[383469818,1756948258812,-400.0,0.00021917,2]
[383469819,1756948258824,-400.0,0.00021917,2]
[383469820,1756948258833,-400.0,0.00021917,2]
[383469821,1756948258843,-400.0,0.00021917,2]
[383469822,1756948258853,-400.0,0.00021917,2]
[383469823,1756948258862,-401.59158005,0.00021917,2]
[383469824,1756948258872,-400.0,0.00021917,2]
[383469825,1756948258881,-400.0,0.00021917,2]
[383469826,1756948258891,-400.0,0.00021917,2]
[383469827,1756948258900,-400.0,0.00021917,2]
[383469828,1756948258910,-400.0,0.00021917,2]
[383469829,1756948258920,-400.0,0.00021917,2]
[383469830,1756948258929,-400.0,0.00021917,2]
[383469831,1756948258939,-400.0,0.00021917,2]
[383469832,1756948258948,-400.0,0.00021917,2]
[383469833,1756948258958,-400.0,0.00021917,2]
[383469834,1756948258967,-400.0,0.00021917,2]
[383469835,1756948258976,-400.0,0.00021917,2]
[383469836,1756948258986,-400.0,0.00021917,2]
[383469837,1756948258995,-400.0,0.00021917,2]
[383469838,1756948259005,-400.0,0.00021917,2]
[383469839,1756948259014,-503.45042699,0.00021917,2]
[383469840,1756948259023,-400.0,0.00021917,2]
[383469841,1756948259033,-400.0,0.00021917,2]
[383469842,1756948259042,-2540.04,0.00021917,2]
[383469843,1756948259052,-2038.19,0.00021917,2]
[383469844,1756948259062,-400.0,0.00021917,2]
[383469845,1756948259072,-424.56,0.00021917,2]
[383469846,1756948259082,-400.0,0.00021917,2]
[383469847,1756948259091,-400.0,0.00021917,2]
[383469848,1756948259101,-400.0,0.00021917,2]
[383469849,1756948259111,-400.0,0.00021917,2]
[383469850,1756948259121,-400.0,0.00021917,2]
[383469851,1756948259131,-400.0,0.00021917,2]
[383469852,1756948259140,-400.0,0.00021917,2]
[383469853,1756948259150,-400.0,0.00021917,2]
[383469854,1756948259160,-400.0,0.00021917,2]
[383469855,1756948259170,-400.0,0.00021917,2]
[383469856,1756948259180,-400.0,0.00021917,2]
[383469857,1756948259189,-400.0,0.00021917,2]
[383469858,1756948259199,-400.0,0.00021917,2]
[383469859,1756948259209,-400.0,0.00021917,2]
[383469860,1756948259219,-400.0,0.00021917,2]
[383469861,1756948259229,-400.0,0.00021917,2]
[383469862,1756948259239,-400.0,0.00021917,2]
[383469863,1756948259249,-406.68201851,0.00021917,2]
[383469864,1756948259259,-1361.96,0.00021917,2]
[383469865,1756948259269,-400.0,0.00021917,2]
[383469866,1756948259279,-612.22,0.00021917,2]
[383469867,1756948259288,-400.0,0.00021917,2]
[383469868,1756948259298,-400.0,0.00021917,2]
[383469869,1756948259308,-400.0,0.00021917,2]
[383469870,1756948259317,-405.56740659,0.00021917,2]
[383469871,1756948259327,-400.0,0.00021917,2]
[383469872,1756948259337,-400.0,0.00021917,2]
[383469873,1756948259347,-400.0,0.00021917,2]
[383469874,1756948259357,-471.16,0.00021917,2]
[383469875,1756948259367,-400.0,0.00021917,2]
[383469876,1756948259376,-400.0,0.00021917,2]
[383469877,1756948259386,-400.0,0.00021917,2]
[383469878,1756948259396,-400.0,0.00021917,2]
[383469879,1756948259405,-406.09648805,0.00021917,2]
[383469880,1756948259415,-400.0,0.00021917,2]
[383469881,1756948259425,-400.0,0.00021917,2]
[383469882,1756948259435,-400.0,0.00021917,2]
[383469883,1756948259445,-400.0,0.00021917,2]
[383469884,1756948259455,-400.0,0.00021917,2]
[383469885,1756948259464,-400.0,0.00021917,2]
[383469886,1756948259474,-400.0,0.00021917,2]
[383469887,1756948259483,-400.0,0.00021917,2]
[383469888,1756948259494,-400.0,0.00021917,2]
[383469889,1756948259504,-492.75,0.00021917,2]
[383469890,1756948259514,-400.0,0.00021917,2]
[383469891,1756948259523,-400.0,0.00021917,2]
[383469892,1756948259533,-400.0,0.00021917,2]
[383469893,1756948259542,-401.85251392,0.00021917,2]
[383469894,1756948259551,-400.0,0.00021917,2]
[383469895,1756948259561,-400.0,0.00021917,2]
[383469896,1756948259570,-400.0,0.00021917,2]
[383469897,1756948259580,-420.85,0.00021917,2]
[383469898,1756948259593,-400.0,0.00021917,2]
[383469899,1756948259603,-273.15353371,0.00021917,2]
[383469900,1756948259612,-400.0,0.00021917,2]
[383469901,1756948259622,-400.0,0.00021917,2]
[383469902,1756948259631,-481.99,0.00021917,2]
[383469903,1756948259641,-400.0,0.00021917,2]
[383469904,1756948259650,-288.17335765,0.00021917,2]
[383469905,1756948259660,-400.0,0.00021917,2]
[383469906,1756948259670,-400.0,0.00021917,2]
[383469907,1756948259679,-373.29179281,0.00021917,2]
[383469908,1756948259689,-400.0,0.00021917,2]
[383469909,1756948259698,-400.0,0.00021917,2]
[383469910,1756948259708,-400.0,0.00021917,2]
[383469911,1756948259718,-400.0,0.00021917,2]
[383469912,1756948259727,-400.0,0.00021917,2]
[383469913,1756948259737,-400.0,0.00021917,2]
[383469914,1756948259748,-413.4,0.00021917,2]
[383469915,1756948259759,-400.0,0.00021917,2]
[383469916,1756948259769,-400.0,0.00021917,2]
[383469917,1756948259779,-400.0,0.00021917,2]
[383469918,1756948259788,-438.33,0.00021917,2]
[383469919,1756948259798,-400.0,0.00021917,2]
[383469920,1756948259808,-400.0,0.00021917,2]
[383469921,1756948259818,-400.0,0.00021917,2]
[383469922,1756948259829,-583.32,0.00021917,2]
[383469923,1756948259838,-400.0,0.00021917,2]
[383469924,1756948259848,-400.0,0.00021917,2]
[383469925,1756948259857,-400.0,0.00021917,2]
[383469926,1756948259867,-400.0,0.00021917,2]
[383469927,1756948259877,-400.0,0.00021917,2]
[383469928,1756948259887,-400.0,0.00021917,2]
[383469929,1756948259896,-400.0,0.00021917,2]
[383469930,1756948259906,-400.0,0.00021917,2]
[383469931,1756948259915,-400.0,0.00021917,2]
[383469932,1756948259926,-400.0,0.00021917,2]
[383469933,1756948259935,-400.0,0.00021917,2]
[383469934,1756948259945,-400.0,0.00021917,2]
[383469935,1756948259955,-699.44,0.00021917,2]
[383469936,1756948259965,-446.47,0.00021917,2]
[383469937,1756948259975,-400.0,0.00021917,2]
[383469938,1756948259985,-400.0,0.00021917,2]
[383469939,1756948259995,-400.0,0.00021917,2]
[383469940,1756948260005,-241.1038897,0.00021917,2]
[383469941,1756948260015,-400.0,0.00021917,2]
[383469942,1756948260026,-452.6,0.00021917,2]
[383469943,1756948260038,-400.0,0.00021917,2]
[383469944,1756948260049,-400.0,0.00021917,2]
[383469945,1756948260059,-400.0,0.00021917,2]
[383469946,1756948260071,-400.0,0.00021917,2]
[383469947,1756948260081,-400.0,0.00021917,2]
[383469948,1756948260091,-400.0,0.00021917,2]
[383469949,1756948260101,-400.0,0.00021917,2]
[383469950,1756948260111,-400.0,0.00021917,2]
[383469951,1756948260121,-400.0,0.00021917,2]
[383469952,1756948260131,-400.0,0.00021917,2]
[383469953,1756948260141,-1460.4,0.00021917,2]
[383469954,1756948260152,-514.63499837,0.00021917,2]
[383469955,1756948260162,-400.0,0.00021917,2]
[383469956,1756948260172,-400.0,0.00021917,2]
[383469957,1756948260182,-400.0,0.00021917,2]
[383469958,1756948260192,-209.44809261,0.00021917,2]
[383469959,1756948260202,-400.0,0.00021917,2]
[383469960,1756948260212,-400.0,0.00021917,2]
[383469961,1756948260222,-400.0,0.00021917,2]
[383469962,1756948260231,-400.0,0.00021917,2]
[383469963,1756948260242,-400.0,0.00021917,2]
[383469964,1756948260252,-400.0,0.00021917,2]
[383469965,1756948260262,-2162.9,0.00021917,2]
[383469966,1756948260272,-400.0,0.00021917,2]
[383469967,1756948260282,-500.0,0.00021917,2]
[383469968,1756948260521,-400.0,0.00021917,2]
[383469969,1756948260534,-400.0,0.00021917,2]
[383469970,1756948260543,-500.0,0.00021917,2]
[383469971,1756948260552,-400.0,0.00021917,2]
[383469972,1756948260561,-401.47550944,0.00021917,2]
[383469973,1756948260570,-400.0,0.00021917,2]
[383469974,1756948260580,-400.0,0.00021917,2]
[383469975,1756948260594,-400.0,0.00021917,2]
[383469976,1756948260603,-400.0,0.00021917,2]
[383469977,1756948260612,-400.0,0.00021917,2]
[383469978,1756948260621,-400.0,0.00021917,2]
[383469979,1756948260631,-403.21039955,0.00021917,2]
[383469980,1756948260640,-400.0,0.00021917,2]
[383469981,1756948260650,-400.0,0.00021917,2]
[383469982,1756948260659,-400.0,0.00021917,2]
[383469983,1756948260668,-400.0,0.00021917,2]
[383469984,1756948260677,-1419.35,0.00021917,2]
[383469985,1756948260687,-400.0,0.00021917,2]
[383469986,1756948260698,-400.0,0.00021917,2]
[383469987,1756948260707,-705.06,0.00021917,2]
[383469988,1756948260718,-400.0,0.00021917,2]
[383469989,1756948260727,-400.0,0.00021917,2]
[383469990,1756948260737,-400.0,0.00021917,2]
[383469991,1756948260747,-400.0,0.00021917,2]
[383469992,1756948260756,-400.0,0.00021917,2]
[383469993,1756948260765,-256.74402432,0.00021917,2]
[383469994,1756948260775,-400.0,0.00021917,2]
[383469995,1756948260784,-507.25976156,0.00021917,2]
[383469996,1756948260794,-400.0,0.00021917,2]
[383469997,1756948260803,-1761.92,0.00021917,2]
[383469998,1756948260814,-400.0,0.00021917,2]
[383469999,1756948260824,-400.0,0.00021917,2]
[383470000,1756948260835,-400.0,0.00021917,2]
[383470001,1756948260846,-400.0,0.00021917,2]
[383470002,1756948260856,-400.0,0.00021917,2]
[383470003,1756948260866,-1172.59,0.00021917,2]
[383470004,1756948260875,-400.0,0.00021917,2]
[383470005,1756948260884,-400.0,0.00021917,2]
[383470006,1756948260895,-3012.65,0.00021917,2]
[383470007,1756948260905,-400.0,0.00021917,2]
[383470008,1756948260914,-400.0,0.00021917,2]
[383470009,1756948260924,-2748.38,0.00021917,2]
[383470010,1756948260933,-400.0,0.00021917,2]
[383470011,1756948260943,-223.95393083,0.00021917,2]
[383470012,1756948260954,-400.0,0.00021917,2]
[383470013,1756948260963,-400.0,0.00021917,2]
[383470014,1756948260973,-400.0,0.00021917,2]
[383470015,1756948260982,-400.0,0.00021917,2]
[383470016,1756948260992,-400.0,0.00021917,2]
[383470017,1756948261002,-400.0,0.00021917,2]
[383470018,1756948261011,-601.34,0.00021917,2]
[383470019,1756948261020,-400.0,0.00021917,2]
[383470020,1756948261030,-400.0,0.00021917,2]
[383470021,1756948261040,-400.0,0.00021917,2]
[383470022,1756948261051,-400.0,0.00021917,2]
[383470023,1756948261060,-400.0,0.00021917,2]
[383470024,1756948261069,-400.0,0.00021917,2]
[383470025,1756948261080,-400.0,0.00021917,2]
[383470026,1756948261089,-400.0,0.00021917,2]
[383470027,1756948261099,-400.0,0.00021917,2]
[383470028,1756948261109,-400.0,0.00021917,2]
[383470029,1756948261119,-400.0,0.00021917,2]
[383470030,1756948261129,-400.0,0.00021917,2]
[383470031,1756948261140,-400.0,0.00021917,2]
[383470032,1756948261150,-642.62,0.00021917,2]
[383470033,1756948261159,-400.0,0.00021917,2]
[383470034,1756948261170,-400.0,0.00021917,2]
[383470035,1756948261181,-402.55239771,0.00021917,2]
[383470036,1756948261191,-400.0,0.00021917,2]
[383470037,1756948261203,-660.03,0.00021917,2]
[383470038,1756948261214,-400.0,0.00021917,2]
[383470039,1756948261224,-400.0,0.00021917,2]
[383470040,1756948261234,-400.0,0.00021917,2]
[383470041,1756948261244,-400.0,0.00021917,2]
[383470042,1756948261254,-400.0,0.00021917,2]
[383470043,1756948261263,-400.0,0.00021917,2]
[383470044,1756948261274,-543.04,0.00021917,2]
[383470045,1756948261285,-400.0,0.00021917,2]
[383470046,1756948261296,-400.0,0.00021917,2]
[383470047,1756948261308,-400.0,0.00021917,2]
[383470048,1756948261318,-400.0,0.00021917,2]
[383470049,1756948261328,-400.0,0.00021917,2]
[383470050,1756948261339,-400.0,0.00021917,2]
[383470051,1756948261348,-400.0,0.00021917,2]
[383470052,1756948261357,-400.0,0.00021917,2]
[383470053,1756948261367,-622.0,0.00021917,2]
[383470054,1756948261376,-400.0,0.00021917,2]
[383470055,1756948261385,-400.0,0.00021917,2]
[383470056,1756948261395,-400.0,0.00021917,2]
[383470057,1756948261404,-400.0,0.00021917,2]
[383470058,1756948261415,-444.78,0.00021917,2]
[383470059,1756948261425,-400.0,0.00021917,2]
[383470060,1756948261435,-400.0,0.00021917,2]
[383470061,1756948261447,-400.0,0.00021917,2]
[383470062,1756948261456,-400.0,0.00021917,2]
[383470063,1756948261467,-400.0,0.00021917,2]
[383470064,1756948261476,-400.0,0.00021917,2]
[383470065,1756948261485,-400.0,0.00021917,2]
[383470066,1756948261496,-400.0,0.00021917,2]
[383470067,1756948261506,-400.0,0.00021917,2]
[383470068,1756948261517,-400.0,0.00021917,2]
[383470069,1756948261527,-400.0,0.00021917,2]
[383470070,1756948261536,-400.0,0.00021917,2]
[383470071,1756948261545,-400.0,0.00021917,2]
[383470072,1756948261555,-400.0,0.00021917,2]
[383470073,1756948261564,-400.0,0.00021917,2]
[383470074,1756948261573,-400.0,0.00021917,2]
[383470075,1756948261584,-400.0,0.00021917,2]
[383470076,1756948261595,-400.0,0.00021917,2]
[383470077,1756948261604,-400.0,0.00021917,2]
[383470078,1756948261613,-400.0,0.00021917,2]
[383470079,1756948261623,-400.0,0.00021917,2]
[383470080,1756948261632,-400.0,0.00021917,2]
[383470081,1756948261642,-415.57,0.00021917,2]
[383470082,1756948261651,-400.0,0.00021917,2]
[383470083,1756948261660,-400.0,0.00021917,2]
[383470084,1756948261670,-400.0,0.00021917,2]
[383470085,1756948261679,-458.14,0.00021917,2]
[383470086,1756948261688,-400.0,0.00021917,2]
[383470087,1756948261698,-400.0,0.00021917,2]
[383470088,1756948261707,-400.0,0.00021917,2]
[383470089,1756948261717,-348.08906658,0.00021917,2]
[383470090,1756948261726,-400.0,0.00021917,2]
[383470091,1756948261735,-400.0,0.00021917,2]
[383470092,1756948261745,-400.0,0.00021917,2]
[383470093,1756948261754,-400.0,0.00021917,2]
[383470094,1756948261764,-2668.96,0.00021917,2]
[383470095,1756948261775,-400.0,0.00021917,2]
[383470096,1756948261784,-400.0,0.00021917,2]
[383470097,1756948261794,-462.53,0.00021917,2]
[383470098,1756948261803,-400.0,0.00021917,2]
[383470099,1756948261813,-400.0,0.00021917,2]
[383470100,1756948261822,-400.0,0.00021917,2]
[383470101,1756948261832,-400.0,0.00021917,2]
[383470102,1756948261843,-400.0,0.00021917,2]
[383470103,1756948261852,-400.0,0.00021917,2]
[383470104,1756948261861,-400.0,0.00021917,2]
[383470105,1756948261871,-400.0,0.00021917,2]
[383470106,1756948261879,-400.0,0.00021917,2]
[383470107,1756948261899,-401.85841933,0.00021917,2]
[383470108,1756948261911,-400.0,0.00021917,2]
[383470109,1756948261921,-400.0,0.00021917,2]
[383470110,1756948261930,-400.0,0.00021917,2]
[383470111,1756948261939,-400.0,0.00021917,2]
[383470112,1756948261949,-421.56,0.00021917,2]
[383470113,1756948261962,-400.0,0.00021917,2]
[383470114,1756948261971,-402.74,0.00021917,2]
[383470115,1756948261980,-5000.0,0.00021918,2]
[383470116,1756948261989,-155.0,0.00021918,2]
[383470117,1756948261998,-155.0,0.00021918,2]
[383470118,1756948262007,-1680.0,0.00021949,2]
[383470119,1756948262017,-451.88295869,0.00021973,2]
[383470139,1756948328895,500.0,0.0002207,120]
[383470140,1756948329012,500.0,0.00020729,120]
[383470141,1756948329173,500.0,0.00021418,120]
[383470148,1756948446841,500.0,0.00022801,120]
[383470198,1756948745474,173.03,0.00016747,2]
[383470199,1756948747955,509.22650697,0.0002,10]
[383470225,1756949072638,2000.0,0.00030137,120]
[383470226,1756949079476,2000.0,0.00030137,120]
[383470227,1756949082141,2000.0,0.00030137,120]
[383470228,1756949086978,2000.0,0.00030137,120]
[383470229,1756949088710,2000.0,0.00030137,120]
[383470231,1756949096315,2000.0,0.00030137,120]
[383470232,1756949109891,-357.36018078,0.00018601,2]
[383470235,1756949111727,-378.5664005,0.00018601,2]
[383470237,1756949116347,-244.06524813,0.0001839,2]
[383470238,1756949119372,-383.53001362,0.0001839,2]
[383470239,1756949124378,-37.62694968,0.0001839,2]
[383470240,1756949124401,-120.25047916,0.00018601,2]
[383470241,1756949126706,-229.82293956,0.00018601,2]
[383470242,1756949133954,2000.0,0.0002401,30]
[383470244,1756949159385,2000.0,0.0002401,30]
[383470246,1756949162884,2000.0,0.0002401,30]
[383470247,1756949174654,2000.0,0.0002401,30]
[383470249,1756949190717,161.52,0.00013699,2]
[383470251,1756949211504,-215.0,0.0001825,2]
[383470252,1756949211646,215.0,0.0001783,2]
[383470253,1756949212981,215.0,0.0001741,2]
[383470254,1756949213238,215.0,0.0001698,2]
[383470255,1756949217308,-54.61843258,0.0001867,2]
[383470256,1756949224569,-41.89744109,0.0001867,2]
[383470257,1756949224593,-118.48412633,0.0001867,2]
[383470259,1756949235798,151.88,0.0001017,2]
[383470260,1756949236274,151.88,0.00010735,2]
[383470261,1756949236542,151.88,0.000113,2]
[383470262,1756949236747,151.88,0.00011865,2]
[383470263,1756949236802,-202.27900851,0.0001909,2]
[383470264,1756949236989,151.88,0.0001243,2]
[383470265,1756949237207,151.88,0.00012995,2]
[383470266,1756949237408,151.88,0.0001356,2]
[383470267,1756949237652,151.88,0.00014125,2]
[383470268,1756949237789,832.604,0.00018601,5]
[383470269,1756949237861,151.88,0.0001469,2]
[383470270,1756949238070,151.88,0.00015255,2]
[383470271,1756949238333,151.88,0.0001582,2]
[383470272,1756949238612,151.88,0.00016385,2]
[383470273,1756949238814,151.88,0.0001695,2]
[383470274,1756949239030,151.88,0.00017515,2]
[383470275,1756949239243,151.88,0.0001808,2]
[383470277,1756949266018,-151.0197152,0.00018645,2]
[383470278,1756949273370,-0.8602848,0.00018645,2]
[383470279,1756949273399,-12.72099149,0.0001909,2]
[383470280,1756949273446,-122.83744742,0.0001921,2]
[383470282,1756949289072,-29.04255258,0.0001921,2]
[383470283,1756949289133,-144.19390335,0.00019365,2]
[383470284,1756949298832,244.065,0.00018582,5]
[383470285,1756949299529,286.027,0.00018601,5]
[383470290,1756949340898,1000.0,0.0003,120]
[383470296,1756949431491,-105.80609665,0.00019365,2]
[383470297,1756949431501,-215.0,0.0001952,2]
[383470298,1756949431511,-1086.0,0.0001958,2]
[383470300,1756949431520,-250.0,0.00019605,2]
[383470302,1756949431530,-175.08125194,0.00019675,2]
[383470304,1756949431539,-151.88,0.00019775,2]
[383470306,1756949431549,-175.08125193,0.00019788,2]
[383470307,1756949431558,-175.08125193,0.000199,2]
[383470308,1756949431567,-215.0,0.0001994,2]
[383470309,1756949431576,-296.87895813,0.00019997,2]
[383470310,1756949431703,-3.12104187,0.00019997,2]
[383470311,1756949431713,-1200.0,0.00019997,2]
[383470312,1756949431722,-371.59493496,0.00019998,2]
[383470313,1756949431732,-460.76973172,0.00019998,2]
[383470314,1756949431742,-500.0,0.00019998,2]
[383470315,1756949431751,-500.0,0.00019998,2]
[383470316,1756949431760,-500.0,0.00019998,2]
[383470317,1756949431770,-500.0,0.00019998,2]
[383470318,1756949431779,-500.0,0.00019998,2]
[383470319,1756949431788,-500.0,0.00019998,2]
[383470320,1756949431797,-500.0,0.00019998,2]
[383470322,1756949431807,-500.0,0.00019998,2]
[383470323,1756949431816,-500.0,0.00019998,2]
[383470324,1756949431825,-500.0,0.00019998,2]
[383470325,1756949431834,-500.0,0.00019998,2]
[383470326,1756949431844,-500.0,0.00019998,2]
[383470327,1756949431853,-500.0,0.00019998,2]
[383470328,1756949431863,-500.0,0.00019998,2]
[383470329,1756949431872,-624.4548706,0.00019998,2]
[383470330,1756949431882,-500.0,0.00019998,2]
[383470331,1756949431891,-500.0,0.00019998,2]
[383470332,1756949431900,-6079.77525991,0.0002,2]
[383470333,1756949431912,-261.73650677,0.0002,2]
[383470335,1756949431923,-1881.50674932,0.0002,2]
[383470336,1756949431934,-1010.83068012,0.0002,2]
[383470337,1756949431969,-370.0,0.0002,2]
[383470338,1756949431981,-613.05817713,0.0002,2]
[383470347,1756949432050,-2381.06832668,0.0002,2]
[383470374,1756949437603,-1108.4548597,0.0002,2]
[383470375,1756949437714,-1119.7,0.0002,2]
[383470559,1756949439652,-556.35649192,0.00019997,2]
[383470561,1756949439663,-500.0,0.00019997,2]
[383470563,1756949439672,-71268.92465597,0.0002,2]
[383470565,1756949439681,-1436.07554094,0.0002,5]
[383470567,1756949439690,-2166.8461171,0.0002,5]
[383470569,1756949439699,-2544.72448754,0.0002,5]
[383470571,1756949439709,-161.52,0.00020187,2]
[383470573,1756949439718,-200.0,0.00020291,2]
[383470575,1756949439727,-151.88,0.0002034,2]
[383470577,1756949439737,-215.0,0.0002036,2]
[383470580,1756949439747,-54.95528852,0.000204,2]
[383470583,1756949439774,-393.72690563,0.000204,2]
[383470586,1756949439785,-8.31780585,0.000204,2]
[383470588,1756949439794,-160.0,0.00020588,7]
[383470590,1756949439803,-1086.0,0.0002061,2]
[383470592,1756949439812,-85.18219415,0.00020652,2]
[383470600,1756949439880,-1610.68330585,0.00020652,2]
[383470602,1756949439890,-231.6517,0.00020652,2]
[383470604,1756949439899,-4734.19,0.00020752,2]
[383470606,1756949439908,-153.94,0.00020773,2]
[383470608,1756949439917,-215.0,0.0002078,2]
[383470610,1756949439927,-208.81,0.00020837,2]
[383470612,1756949439935,-1219.75866697,0.00020933,2]
[383470614,1756949439947,-14.13133303,0.00020933,2]
[383470616,1756949439956,-158.4,0.00020959,2]
[383470618,1756949439965,-139.88866697,0.00020981,2]
[383470695,1756949442616,-1.73173942,0.00020981,2]
[383470696,1756949442823,-154.27725989,0.000199,2]
[383470697,1756949442833,-271.74959361,0.00020981,2]
[383470698,1756949442842,-250.0,0.00020991,2]
[383470699,1756949442852,-267.46074303,0.0002101,2]
[383470700,1756949442861,-3000.0,0.0002101,2]
[383470701,1756949442871,-666.0,0.00021024,3]
[383470702,1756949442881,-540.98,0.00021078,2]
[383470703,1756949442890,-250.0,0.00021131,2]
[383470704,1756949442899,-47.53240347,0.000212,2]
[383470705,1756949442910,-167.46759653,0.000212,2]
[383470706,1756949442919,-540.98,0.000215,2]
[383470707,1756949442928,-192.59,0.000215,2]
[383470708,1756949442938,-337.86917771,0.0002158,2]
[383470709,1756949442966,-110.13082229,0.0002158,2]
[383470710,1756949442975,-1156.51391942,0.00021605,2]
[383470714,1756949445575,-442.27670418,0.00021605,2]
[383470715,1756949445584,-268.07329436,0.00021609,2]
[383470716,1756949445595,-954.92670564,0.00021609,2]
[383470717,1756949445604,-1148.24979436,0.00021609,2]
[383470718,1756949445616,-74.75020564,0.00021609,2]
[383470719,1756949445625,-1223.0,0.00021609,2]
[383470720,1756949445634,-0.10100257,0.00021609,2]
[383470721,1756949445675,-347.80917747,0.00021609,2]
[383470722,1756949445910,-875.08981996,0.00021609,2]
[383470723,1756949445920,-1223.0,0.00021609,2]
[383470724,1756949445931,-69.16311498,0.00021609,2]
[383470727,1756949479535,2000.0,0.0002401,30]
[383470746,1756949686629,459.0,0.00030137,120]
[383470750,1756949702678,10861.91,0.0003013,120]
[383470792,1756950111382,299.999999,0.0003,120]
[383470802,1756950167903,201.0,0.00030136,120]
[383470805,1756950190562,155.0,0.00030136,120]
[383470815,1756950264899,190.02,0.00010349,2]
[383470863,1756950487877,621.02926861,0.0003013,120]
[383470866,1756950618019,154.46,0.00013699,2]
[383470871,1756950631735,-315.88,0.0002,2]
[383470872,1756950631747,-154.46,0.00020187,2]
[383470873,1756950631756,-288.40296423,0.00020379,2]
[383470874,1756950631766,-666.0,0.00020479,3]
[383470875,1756950631781,-330.69,0.000205,2]
[383470876,1756950631790,-826.96211493,0.00020671,2]
[383470877,1756950631799,-190.02,0.00020699,2]
[383470878,1756950631809,-160.0,0.0002072,7]
[383470879,1756950631819,-616.94,0.00020772,2]
[383470880,1756950631828,-310.19,0.00020775,2]
[383470881,1756950631839,-250.0,0.00020848,2]
[383470882,1756950631849,-161.83,0.00020848,2]
[383470883,1756950631859,-151.0,0.00020858,2]
[383470884,1756950631869,-255.30213663,0.00020858,2]
[383470885,1756950631878,-1200.0,0.00020863,2]
[383470886,1756950631888,-267.46074303,0.00020864,2]
[383470887,1756950631898,-345.08525623,0.00020864,2]
[383470888,1756950631908,-726.57577652,0.00020864,2]
[383470889,1756950631918,-300.0,0.00020868,2]
[383470890,1756950631927,-265.75416693,0.0002087,2]
[383470891,1756950631937,-500.0,0.0002087,2]
[383470892,1756950631946,-500.0,0.0002087,2]
[383470893,1756950631957,-442.02692748,0.0002087,2]
[383470894,1756950631966,-164.2845438,0.00020871,2]
[383470895,1756950631976,-24786.9640225,0.00020871,2]
[383470896,1756950631985,-452.2896007,0.00020871,2]
[383470897,1756950631995,-248.4560143,0.00020871,2]
[383470898,1756950632005,-506.0621914,0.00020871,2]
[383470899,1756950632015,-826.96211493,0.00020891,2]
[383470900,1756950632025,-555.49,0.000209,2]
[383470901,1756950632035,-1717.56103189,0.0002095,2]
[383470902,1756950632044,-7808.01,0.00020951,2]
[383470903,1756950632054,-999.99,0.00020951,2]